Cogmind - Beta 14 @@@ ROGUE MODE // 2025.01.03 @ 15:46:54 Player: nixerot Result: Destroyed by D-53 Grenadier with Mini Grenade Launcher Performance ------------- Evolutions (0) 0 Regions Visited (2) 400 Robots Destroyed (7) 35 Value Destroyed (170) 170 Prototype IDs (0) 0 Alien Tech Used (0) 0 Bonus (0) 0 TOTAL SCORE: 605 Bonus ------- None Cogmind --------- Core Integrity 0/250 Matter 300/300 Energy 100/100 System Corruption 0% Temperature Cool (0) Movement Core (50) Location -10/Mines Parts ------- > --- POWER (1) -------- (None) > --- PROPULSION (2) --- (None) > --- UTILITY (2) ------ Targeting Computer > --- WEAPON (2) ------- (None) > --- INVENTORY (5) ---- (None) Peak State ------------ > --- POWER ------------ Ion Engine > --- PROPULSION ------- Wheel Wheel > --- UTILITY ---------- Heat Sink Light Armor Plating > --- WEAPON ----------- EM Pulse Gun Light Assault Rifle > --- INVENTORY -------- (None) [Rating: 7] Favorites ----------- Power Ion Engine Engine Ion Engine Propulsion Wheel Treads Light Treads Wheel Wheel Hover Unit Hover Unit Utility Heat Sink Device Heat Sink Processor Targeting Computer Protection Light Armor Plating Weapon Light Assault Rifle Energy Gun Particle Gun Ballistic Gun Light Assault Rifle Ballistic Cannon Light Cannon Build | -11 -10 -10 ------- Run | Yrd Mat Min Slots Evolved . | . . . Power . | . . . Propulsion . | . . . Utility . | . . . Weapon . | . . . Parts Attached 15 | 6 6 3 Power 2 | 1 1 . Engine 2 | 1 1 . Core . | . . . Reactor . | . . . Propulsion 4 | 2 1 1 Treads 1 | . 1 . Leg . | . . . Wheel 2 | 2 . . Hover 1 | . . 1 Flight . | . . . Utility 3 | . 3 . Device 1 | . 1 . Storage . | . . . Processor 1 | . 1 . Hackware . | . . . Protection 1 | . 1 . Artifact . | . . . Weapon 6 | 3 1 2 Energy Gun 3 | 2 1 . Energy Cannon . | . . . Ballistic Gun 2 | 1 . 1 Ballistic Cannon 1 | . . 1 Launcher . | . . . Special Weapon . | . . . Impact Weapon . | . . . Slashing Weapon . | . . . Piercing Weapon . | . . . Special Melee Weapon . | . . . Unidentified Prototypes . | . . . Parts Lost 10 | . 4 6 Power 1 | . . 1 Propulsion 4 | . 2 2 Utility 2 | . 1 1 Weapon 3 | . 1 2 Highest Loss Streak 4 | . 4 4 To Critical Strikes . | . . . Average Slot Usage (%) 75 | . 78 69 Engine 10 | . 14 4 Treads 7 | . 6 8 Wheel 9 | . 14 . Device 10 | . 9 14 Processor 6 | . 2 14 Protection 2 | . 3 . Energy Gun 11 | . 12 10 Ballistic Gun 10 | . 14 4 Ballistic Cannon 3 | . . 12 Peak Build Rating 7 | 5 7 7 Average Rating 5 | 4 5 5 On Entrance 4 | . 5 7 Naked Turns . | . . . Heaviest Build 12 | 8 12 10 Greatest Support 20 | 20 20 20 Greatest Overweight (x) 2 | . . 2 Average Overweight (x) . | . . . Largest Inventory Capacity 5 | 5 5 5 Average Capacity 5 | 5 5 5 Most Carried 1 | 1 1 1 Average Carried . | . . . Final Capacity 5 | 5 5 5 Final Carried . | . . . Class Distribution -------------------- 100% | Mutant Dominant Class ---------------- Mutant | -10/Materials Mutant | -10/Mines Resources | -11 -10 -10 ----------- Run | Yrd Mat Min Matter Collected 445 | 184 133 128 Remotely . | . . . Salvage Created 302 | . 229 73 Parts 11 | . 11 . Haulers Intercepted . | . . . Recyclers Shooed . | . . . Parts Field Recycled . | . . . Retrieved Matter . | . . . Parts Self-Destructed . | . . . Prevented . | . . . Kills | -11 -10 -10 ------- Run | Yrd Mat Min Combat Hostiles Destroyed 14 | . 5 9 Guns 8 | . 5 3 Cannons 6 | . . 6 Classes Destroyed 5 | . 3 2 Recycler 1 | . 1 . Swarmer 3 | . 3 . Grunt 2 | . 2 . Demolisher 1 | . . 1 Assembled 8 | . . 8 Best Kill Streak 8 | . 3 8 Combat Bots Only 8 | . 3 8 Max Kills in Single Turn 2 | . 2 2 Gunslinging 1 | . 1 . Exploded . | . . . Melee . | . . . Uniques/NPCs Destroyed . | . . . Combat | -11 -10 -10 -------- Run | Yrd Mat Min Hostile Shots Fired 94 | . 59 35 Missed 26 | . 19 7 Damage Taken 1007 | . 426 581 Core 264 | . 54 210 Absorbed by Shields . | . . . Core Remaining (%) 100 | 100 . . Volleys Fired 55 | . 27 28 Largest 2 | . 2 2 Hottest 100 | . 85 100 Shots Fired 100 | . 46 54 Gun 74 | . 46 28 Cannon 26 | . . 26 Launcher . | . . . Special . | . . . Kinetic 59 | . 27 32 Thermal 28 | . 6 22 Explosive . | . . . Electromagnetic 13 | . 13 . Robot Hit Streak 5 | . 5 5 Robot Miss Streak 5 | . 5 4 Penetration Max . | . . . Secondary Targets 1 | . 1 . Max Gunslinging Chain 1 | . 1 . Shots Hit Robots 54 | . 25 29 Core Hits 27 | . 10 17 Critical Kills . | . . . Critical Parts Destroyed . | . . . Critical Strikes 1 | . . 1 Burn 1 | . . 1 Melee Attacks . | . . . Impact . | . . . Slashing . | . . . Piercing . | . . . Sneak Attacks . | . . . Combat Hostiles . | . . . Follow-up Attacks . | . . . Damage Inflicted 754 | . 256 498 Guns 433 | . 256 177 Cannons 310 | . . 310 Explosions . | . . . Melee . | . . . Ramming 11 | . . 11 Kinetic 440 | . 114 326 Thermal 244 | . 83 161 Explosive . | . . . Electromagnetic 59 | . 59 . Impact . | . . . Slashing . | . . . Piercing . | . . . Highest Corruption . | . . . Average Corruption . | . . . Corruption Purged . | . . . Corruption Blocked . | . . . Overload Shots . | . . . Overflow Damage . | . . . Projectiles . | . . . Explosions . | . . . Melee . | . . . Knockbacks 12 | . . 12 Impact . | . . . Kinetic 7 | . . 7 Secondary 5 | . . 5 Self-Inflicted Damage 5 | . . 5 Shots . | . . . Rammed 1 | . . 1 Targets Rammed 1 | . . 1 Kicked . | . . . Crushed . | . . . Highest Temperature 79 | . 79 55 Average Temperature 26 | . 25 27 Received Heat Transfer 222 | . 162 60 Siege Activations . | . . . Robots Corrupted . | . . . Combat Hostiles . | . . . Parts Fried . | . . . Impact Corruptions . | . . . Robots Melted . | . . . Combat Hostiles . | . . . Parts Melted . | . . . Heat Transferred 666 | . 185 481 Parts Sabotaged . | . . . Parts Stolen . | . . . Parts Stripped . | . . . Power Chain Reactions . | . . . Alert | -11 -10 -10 ------- Run | Yrd Mat Min Peak Influence 115 | . 115 44 Initial 44 | . . 44 Average 52 | . 71 33 Maximum Alert Level . | . . . Low Security (%) 100 | 100 100 100 Level 1 . | . . . Level 2 . | . . . Level 3 . | . . . Level 4 . | . . . Level 5 . | . . . High Security . | . . . Max Security . | . . . Squads Dispatched . | . . . Investigation . | . . . Extermination . | . . . Reinforcement . | . . . Assault . | . . . Garrison . | . . . Intercept . | . . . Searches Triggered . | . . . Construction Impeded . | . . . Haulers Reinforced . | . . . Active Scanning Responses . | . . . Cargo Convoy Interrupts . | . . . Stealth | -11 -10 -10 --------- Run | Yrd Mat Min Distress Signals . | . . . Communications Jammed . | . . . Distress Signals . | . . . Times Spotted 15 | . 5 10 Peak Tracking Total 5 | . 3 5 Tactical Retreats . | . . . Traps | -11 -10 -10 ------- Run | Yrd Mat Min Traps Triggered . | . . . Indirectly . | . . . Trap Hack Attempts . | . . . Triggered . | . . . Disarmed . | . . . Reprogrammed . | . . . Reused . | . . . Traps Extracted . | . . . Installed . | . . . Triggered . | . . . Machines | -11 -10 -10 ---------- Run | Yrd Mat Min Machines Disabled . | . . . Max in Single Turn . | . . . Machines Repaired . | . . . Machines Dismantled . | . . . Machines Sabotaged . | . . . Overloaded Fab Kills . | . . . Hacking | -11 -10 -10 --------- Run | Yrd Mat Min Machines Accessed 3 | . 3 . Terminals 2 | . 2 . Fabricators . | . . . Repair Stations . | . . . Recycling Units 1 | . 1 . Scanalyzers . | . . . Garrison Access . | . . . Total Hacks 10 | . 10 . Successful 6 | . 6 . Failed 4 | . 4 . Catastrophic . | . . . Database Lockouts . | . . . Manual . | . . . Terminals 8 | . 8 . Fabricators . | . . . Repair Stations . | . . . Recycling Units 2 | . 2 . Scanalyzers . | . . . Garrison Access . | . . . Terminal Hacks 4 | . 4 . Record 4 | . 4 . Fabricator Hacks . | . . . Repair Station Hacks . | . . . Recycling Unit Hacks 2 | . 2 . Report Inventory 1 | . 1 . Retrieve Components 1 | . 1 . Scanalyzer . | . . . Garrison Access Hacks . | . . . Unauthorized Hacks . | . . . Terminals . | . . . Fabricators . | . . . Repair Stations . | . . . Recycling Units . | . . . Scanalyzers . | . . . Garrison Access . | . . . Data Cores Recovered . | . . . Used . | . . . Hacking Detections 2 | . 2 . Full Trace Events . | . . . Feedback Events . | . . . Feedback Blocked . | . . . Robot Schematics Acquired . | . . . Robots Built . | . . . Authchips . | . . . Time . | . . . Total Robot Build Rating . | . . . Part Schematics Acquired . | . . . Parts Built . | . . . Authchips . | . . . Time . | . . . Total Part Build Rating . | . . . Parts Repaired . | . . . Time . | . . . Parts Recycled . | . . . Recycled Matter . | . . . Retrieved Matter . | . . . Retrieved Components 3 | . 3 . Parts Scanalyzed . | . . . Part Schematics Acquired . | . . . Parts Damaged . | . . . Bothacking | -11 -10 -10 ------------ Run | Yrd Mat Min Used RIF Installer . | . . . Robots Hacked . | . . . Non-combat . | . . . Combat . | . . . Robot Hacks Applied . | . . . Relay Couplers Released . | . . . Fabnet Peak Effective % . | . . . Robots Rewired . | . . . Allies Hacked . | . . . Hacks Repelled . | . . . Allies | -11 -10 -10 -------- Run | Yrd Mat Min Total Allies . | . . . Largest Group . | . . . Highest-Rated Group . | . . . Highest-Rated Ally . | . . . Total Orders . | . . . Ally Attacks . | . . . Total Damage . | . . . Kills . | . . . Allies Corrupted . | . . . Allies Melted . | . . . Intel | -11 -10 -10 ------- Run | Yrd Mat Min Robot Analysis Total . | . . . Derelict Logs Recovered 1 | . . 1 Drone Launches . | . . . Drone Recoveries . | . . . Exploration | -11 -10 -10 ------------- Run | Yrd Mat Min Turns Passed 472 | 48 282 142 Spaces Moved 277 | 44 184 49 Core 9 | 1 . 8 Treads 85 | . 69 16 Legs . | . . . Wheels 158 | 43 115 . Hover 25 | . . 25 Flight . | . . . Fastest Speed 50 | 50 80 50 Average Speed 103 | 79 110 100 Slowest Speed 160 | 80 160 160 Overloaded Moves . | . . . Propulsion Burnouts . | . . . Robots Hopped . | . . . Cave-ins Triggered . | . . . Exploration Rate (%) 22 | 5 36 25 Regions Visited 2 Branch Regions 1 Pre-discovered Areas . | . . . Known Exits Taken . | . . . Unknown Exits Taken 2 | 1 1 . Scrap Searched 2 | . . 2 Spaces Dug . | . . . Terrain Destroyed . | . . . Melee . | . . . Projectile . | . . . AOE . | . . . Terrain Rammed . | . . . Walls Destroyed . | . . . Machines Disabled . | . . . Actions | -11 -10 -10 --------- Run | Yrd Mat Min Total 368 | 56 223 89 Wait 3 | . . 3 Move 275 | 43 183 49 Hop . | . . . Pick Up 15 | 6 6 3 Fast Attach . | . . . Attach 11 | 5 5 1 Detach . | . . . Swap 4 | 1 1 2 Drop 4 | 1 1 2 Fire 55 | . 27 28 Melee . | . . . Ram 1 | . . 1 Kick . | . . . Crush . | . . . Escape Stasis . | . . . Rewire . | . . . Trap . | . . . Miscellaneous . | . . . Route ------- -11/Scrapyard -10/Materials -10/Mines History --------- Turn | Location | Event 11 | -11/Scrapyard | Discovered new exit (range 16) 49 | -11/Scrapyard | Entered Materials 221 | -10/Materials | Lost 4 parts (2n1u1w) 288 | -10/Materials | Discovered new exit (range 13) 314 | -10/Materials | Build established: Mutant 331 | -10/Materials | Entered Mines 334 | -10/Mines | Assembled infested the area 350 | -10/Mines | Learned Materials terminal intel 424 | -10/Mines | Core integrity fell below 50% 445 | -10/Mines | Destroyed 8 combat bots 472 | -10/Mines | Core integrity fell below 20% 473 | -10/Mines | Destroyed by D-53 Grenadier with Mini Grenade Launcher Last Messages --------------- 00419_ Acquired 4 matter. 00421_ as-42234 knocked back. 00422_ Acquired 4 matter. 00424_ as-42234 destroyed. 00425_ Acquired 4 matter. 00433_ Acquired Hover Unit. 00436_ Acquired Lgt. Assault Rifle. 00439_ Dropped Particle Gun. 00439_ Acquired 13 matter. 00441_ Acquired 7 matter. 00448_ K-01 Serf collects debris. 00450_ U-05 Engineer lays Concrete. 00451_ K-01 Serf collects debris. 00458_ D-53 Grenadier destroyed. 00465_ Lgt. Cannon destroyed. 00467_ Hover Unit destroyed. 00469_ Lgt. Assault Rifle destroyed. 00470_ U-05 Engineer builds a Wall. 00471_ Heat Sink destroyed. 00473_ Slammed into D-53 Grenadier. Map ----- +----------------------------------------------------+ | | | | | ??????????????????????????????????????????? | | ??????????????????????????????????????????? | | ??????????????????????????????????????????? | | ??????????????????????????????????????????? | | ??????????????????????????????????????????? | | ??????????????????????????????????????????? | | ??????????????????????????????????????????? | | ??????????????????????????????????????????? | | ???????????????????????? ????????????????? | | ???????????????????????? ???????????????? | | ???????????????????????? ???????????????? | | ????????????????????#??# ???????????????? | | ???????????????????? ??# ???????? ?????? | | ????????????????????# ?# ??????? ?????? | | ????????????????????# ?# #?????? ????? | | ?????????????????#### ## #?????# #????? | | ?????????????????# # # #?#### #????? | | ?????????????????? % ## #????? | | ??????????????????? #????? | | ???????????????????? ##???? | | ?????????????????????# #???? | | ????????????????????### #???? | | ?????????? ???????### # % #??? | | ??????? ?? ?????## @d #?? | | ??????? ## ???## #?? | | ??????? #?## ## ### #??? | | ???????## ## ##??????????##??? | | ???????## #???????????????? | | ????????# #??????????????? | | ????????#######< ###??????????????? | | ??????????????## ##???????????????? | | ???????????????##kr r #???????????????? | | ????????????????## #???????????????? | | ?????????????????# # #???????????????? | | ?????????????????# # ##???????????????? | | ?????????????????# ##%#????????????????? | | ?????????????# # ###%##########???????? | | ?????????????# % %%%%%!%% #???????? | | ?????????????# ##%#####!### #???????? | | ????????????# ###### ??### #???????????? | | ?????????????? ?????# ?## [|##??#???????? | | ????????????? ?????# ?# ## #???????? | | ????????????? ?????? ?# ##??????? | | ???????????? ??????##?## #??????? | | ??????????? ??????????## #??????? | | ??????????? ???????????# #??????? | | ?????????????????????????# ##??????? | | ?????????????????????????# ###???????? | +----------------------------------------------------+ Best States ------------- Heat Dissipation 35 Energy Generation 10 Energy Capacity 250 Matter Stores 300 Matter Capacity 300 Sight Range 16 Terrain Scan Density 10 Armor Coverage 150 Evasion (%) 53 Targeting Accuracy 5 Recoil Reduction 1 Item Schematics ----------------- None Robot Schematics ------------------ None Fabricated ------------ Nothing Alien Tech Used ----------------- None Achievements -------------- None Challenges ------------ None Game ------ Seed MicroMicroMonowheel Manual? 0 Play Time 00:13:30 Cumulative 6.5 hours Start 2025.01.03 @ 15:25:56 End 2025.01.03 @ 15:46:54 Sessions 1 Manual Loads 0 Difficulty Rogue Special Mode None Game No. 7 Rogue 7 Adventurer 0 Explorer 0 Win Type - Total 0 Types 0/0/0/0/0/0/0/0/0 Lore% 4 Gallery% 12 Achievement% 17 Wizard Run 0 Options --------- Layout 1 ASCII 0 Keyboard 0 Movement Mouse Keybinds 0 Fullscreen 1 Font 32/SmallcapsGlow Map View 50x35 Zoom Use 0% Tactical HUD 1 Map Filters NONE Filters NONE Steam 1 RUN: 8e6d415f-0001-44c8-90ee-b67e6e1e494a